fUST/lending_fUST_20240824
["ID","MTS","AMOUNT","RATE_DAILY","PERIOD"]
[335765644,1724482254001,-500.0,0.00013972,2]
[335765646,1724482254013,-538.13,0.00013972,2]
[335765648,1724482254025,-500.0,0.00013972,2]
[335765650,1724482254035,-500.0,0.00013972,2]
[335765652,1724482254046,-500.0,0.00013972,2]
[335765655,1724482254058,-500.0,0.00013972,2]
[335765657,1724482254069,-500.0,0.00013972,2]
[335765659,1724482254079,-500.0,0.00013972,2]
[335765661,1724482254088,-500.0,0.00013972,2]
[335765663,1724482254097,-250.19196397,0.00013972,2]
[335765665,1724482254107,-500.0,0.00013972,2]
[335765667,1724482254116,-500.0,0.00013972,2]
[335765669,1724482254126,-831.41,0.00013972,2]
[335765671,1724482254136,-12738.12,0.00013972,2]
[335765672,1724482254145,-500.0,0.00013972,2]
[335765674,1724482254154,-500.36419857,0.00013972,2]
[335765676,1724482254164,-2071.27,0.00013972,2]
[335765678,1724482254173,-377.094984,0.00013972,2]
[335765680,1724482254183,-377.094984,0.00013972,2]
[335765682,1724482254192,-377.094984,0.00013972,2]
[335765684,1724482254201,-1244.18,0.00013972,2]
[335765686,1724482254211,-4227.07,0.00013972,2]
[335765688,1724482254220,-377.094984,0.00013972,2]
[335765691,1724482254231,-377.094984,0.00013972,2]
[335765692,1724482254240,-377.094984,0.00013972,2]
[335765694,1724482254250,-500.0,0.00013972,2]
[335765697,1724482254261,-500.0,0.00013972,2]
[335765699,1724482254272,-1194.95,0.00013972,2]
[335765701,1724482254283,-500.0,0.00013972,2]
[335765703,1724482254292,-710.8,0.00013972,2]
[335765705,1724482254302,-3535.31,0.00013972,2]
[335765707,1724482254311,-1169.58,0.00013972,2]
[335765709,1724482254322,-500.0,0.00013972,2]
[335765711,1724482254331,-500.0,0.00013972,2]
[335765713,1724482254340,-6400.41,0.00013972,2]
[335765715,1724482254349,-500.0,0.00013972,2]
[335765717,1724482254358,-5908.11,0.00013972,2]
[335765719,1724482254368,-2041.26,0.00013972,2]
[335765721,1724482254379,-500.0,0.00013972,2]
[335765723,1724482254390,-500.0,0.00013972,2]
[335765725,1724482254401,-500.0,0.00013972,2]
[335765727,1724482254411,-1425.9,0.00013972,2]
[335765729,1724482254420,-500.0,0.00013972,2]
[335765731,1724482254430,-500.0,0.00013972,2]
[335765734,1724482254447,-500.0,0.00013972,2]
[335765736,1724482254459,-566.66,0.00013972,2]
[335765738,1724482254472,-665.17,0.00013972,2]
[335765740,1724482254482,-500.0,0.00013972,2]
[335765742,1724482254492,-1175.46,0.00013972,2]
[335765744,1724482254501,-950.61,0.00013972,2]
[335765746,1724482254510,-733.07,0.00013972,2]
[335765748,1724482254519,-1035.65,0.00013972,2]
[335765750,1724482254530,-500.0,0.00013972,2]
[335765752,1724482254539,-2017.28,0.00013972,2]
[335765754,1724482254548,-500.0,0.00013972,2]
[335765756,1724482254558,-997.93,0.00013972,2]
[335765758,1724482254568,-599.44,0.00013972,2]
[335765760,1724482254578,-500.0,0.00013972,2]
[335765762,1724482254587,-500.0,0.00013972,2]
[335765764,1724482254597,-500.0,0.00013972,2]
[335765766,1724482254607,-500.0,0.00013972,2]
[335765768,1724482254618,-500.0,0.00013972,2]
[335765770,1724482254629,-937.17,0.00013972,2]
[335765772,1724482254640,-958.42,0.00013972,2]
[335765775,1724482254651,-867.0,0.00013972,2]
[335765777,1724482254661,-8249.59,0.00013972,2]
[335765779,1724482254670,-500.0,0.00013972,2]
[335765782,1724482254693,-500.0,0.00013972,2]
[335765784,1724482254703,-2405.34,0.00013972,2]
[335765786,1724482254713,-1679.64,0.00013972,2]
[335765788,1724482254724,-1115.09,0.00013972,2]
[335765790,1724482254734,-500.0,0.00013972,2]
[335765792,1724482254744,-636.46,0.00013972,2]
[335765794,1724482254754,-646.13,0.00013972,2]
[335765796,1724482254764,-20048.66,0.00013972,2]
[335765798,1724482254775,-500.0,0.00013972,2]
[335765800,1724482254785,-500.0,0.00013972,2]
[335765802,1724482254795,-500.0,0.00013972,2]
[335765804,1724482254805,-2054.2,0.00013972,2]
[335765806,1724482254815,-500.0,0.00013972,2]
[335765808,1724482254825,-500.0,0.00013972,2]
[335765810,1724482254834,-766.92,0.00013972,2]
[335765812,1724482254844,-500.0,0.00013972,2]
[335765814,1724482254854,-724.02,0.00013972,2]
[335765816,1724482254863,-2204.09,0.00013972,2]
[335765818,1724482254873,-2178.77,0.00013972,2]
[335765820,1724482254882,-500.0,0.00013972,2]
[335765822,1724482254892,-713.31,0.00013972,2]
[335765824,1724482254902,-500.0,0.00013972,2]
[335765826,1724482254912,-530.51,0.00013972,2]
[335765828,1724482254922,-500.0,0.00013972,2]
[335765830,1724482254932,-3627.55,0.00013972,2]
[335765832,1724482254948,-500.0,0.00013972,2]
[335765834,1724482254958,-500.0,0.00013972,2]
[335765837,1724482254968,-1782.81,0.00013972,2]
[335765839,1724482254978,-1005.83,0.00013972,2]
[335765840,1724482254987,-5727.35,0.00013972,2]
[335765842,1724482254997,-660.83,0.00013972,2]
[335765844,1724482255006,-500.0,0.00013972,2]
[335765846,1724482255016,-500.0,0.00013972,2]
[335765848,1724482255025,-886.86,0.00013972,2]
[335765851,1724482255036,-638.86110695,0.00013972,2]
[335765853,1724482255046,-1761.34,0.00013972,2]
[335765855,1724482255055,-3275.32,0.00013972,2]
[335765857,1724482255065,-880.15,0.00013972,2]
[335765859,1724482255074,-532.59,0.00013972,2]
[335765861,1724482255084,-729.16,0.00013972,2]
[335765862,1724482255095,-1749.37,0.00013972,2]
[335765864,1724482255105,-500.0,0.00013972,2]
[335765866,1724482255114,-1816.04,0.00013972,2]
[335765868,1724482255124,-8847.71,0.00013972,2]
[335765870,1724482255133,-836.84,0.00013972,2]
[335765872,1724482255144,-10474.38,0.00013972,2]
[335765874,1724482255154,-500.0,0.00013972,2]
[335765876,1724482255164,-500.0,0.00013972,2]
[335765879,1724482255173,-500.0,0.00013972,2]
[335765880,1724482255186,-1006.79,0.00013972,2]
[335765883,1724482255196,-521.1,0.00013972,2]
[335765885,1724482255206,-649.48,0.00013972,2]
[335765887,1724482255215,-663.56,0.00013972,2]
[335765889,1724482255225,-500.0,0.00013972,2]
[335765890,1724482255234,-374.631771,0.00013972,2]
[335765892,1724482255244,-374.631771,0.00013972,2]
[335765894,1724482255253,-374.631771,0.00013972,2]
[335765896,1724482255263,-9076.72,0.00013972,2]
[335765898,1724482255273,-500.0,0.00013972,2]
[335765900,1724482255282,-374.631771,0.00013972,2]
[335765902,1724482255292,-374.631771,0.00013972,2]
[335765904,1724482255302,-500.0,0.00013972,2]
[335765906,1724482255311,-374.631771,0.00013972,2]
[335765909,1724482255326,-500.0,0.00013972,2]
[335765911,1724482255335,-655.06,0.00013972,2]
[335765913,1724482255345,-500.0,0.00013972,2]
[335765915,1724482255355,-500.0,0.00013972,2]
[335765917,1724482255365,-500.0,0.00013972,2]
[335765919,1724482255375,-1200.31,0.00013972,2]
[335765921,1724482255385,-500.0,0.00013972,2]
[335765922,1724482255395,-505.25961884,0.00013972,2]
[335765923,1724482255405,-500.0,0.00013972,2]
[335765924,1724482255415,-1311.32,0.00013972,2]
[335765925,1724482255424,-500.0,0.00013972,2]
[335765926,1724482255435,-512.44,0.00013972,2]
[335765927,1724482255446,-1055.85,0.00013972,2]
[335765928,1724482255456,-20125.35,0.00013972,2]
[335765929,1724482255465,-637.99,0.00013972,2]
[335765930,1724482255475,-3352.33,0.00013972,2]
[335765931,1724482255484,-950.259632,0.00013972,2]
[335765932,1724482255495,-950.259632,0.00013972,2]
[335765933,1724482255506,-924.23,0.00013972,2]
[335765935,1724482255516,-950.259632,0.00013972,2]
[335765937,1724482255527,-14101.51,0.00013972,2]
[335765939,1724482255537,-990.21,0.00013972,2]
[335765941,1724482255548,-500.0,0.00013972,2]
[335765943,1724482255558,-500.0,0.00013972,2]
[335765945,1724482255568,-950.259632,0.00013972,2]
[335765947,1724482255577,-950.259632,0.00013972,2]
[335765949,1724482255587,-500.0,0.00013972,2]
[335765951,1724482255598,-950.259632,0.00013972,2]
[335765953,1724482255608,-500.0,0.00013972,2]
[335765955,1724482255618,-746.5,0.00013972,2]
[335765957,1724482255627,-2780.69,0.00013972,2]
[335765959,1724482255637,-612.5,0.00013972,2]
[335765961,1724482255647,-500.0,0.00013972,2]
[335765963,1724482255657,-2293.24,0.00013972,2]
[335765965,1724482255667,-500.0,0.00013972,2]
[335765967,1724482255677,-1245.96,0.00013972,2]
[335765969,1724482255686,-500.0,0.00013972,2]
[335765971,1724482255696,-500.0,0.00013972,2]
[335765973,1724482255706,-162.847263,0.00013972,2]
[335765975,1724482255715,-162.847263,0.00013972,2]
[335765977,1724482255725,-162.847263,0.00013972,2]
[335765979,1724482255735,-2588.899005,0.00013972,2]
[335765981,1724482255744,-2129.54663943,0.00013972,2]
[335766056,1724482256434,-422.96869171,0.00013972,2]
[335766177,1724482257551,-174.08789315,0.00013698,2]
[335766186,1724482257623,-24.19766778,0.00013698,2]
[335766288,1724482258723,-301.71443907,0.00013698,2]
[335766290,1724482258733,-500.0,0.00013698,2]
[335766292,1724482258742,-500.0,0.00013698,2]
[335766294,1724482258752,-503.47947032,0.00013698,2]
[335766296,1724482258761,-503.47947032,0.00013698,2]
[335766298,1724482258771,-503.47947032,0.00013698,2]
[335766300,1724482258781,-503.47947032,0.00013698,2]
[335766302,1724482258790,-500.0,0.00013698,2]
[335766304,1724482258800,-503.47947032,0.00013698,2]
[335766306,1724482258810,-503.47947032,0.00013698,2]
[335766308,1724482258820,-568.48,0.00013698,2]
[335766310,1724482258830,-503.47947032,0.00013698,2]
[335766312,1724482258840,-503.47947032,0.00013698,2]
[335766314,1724482258849,-503.47947032,0.00013698,2]
[335766316,1724482258859,-500.0,0.00013698,2]
[335766318,1724482258870,-500.0,0.00013698,2]
[335766320,1724482258879,-500.0,0.00013698,2]
[335766322,1724482258889,-500.0,0.00013698,2]
[335766324,1724482258898,-500.0,0.00013698,2]
[335766326,1724482258908,-732.89,0.00013698,2]
[335766328,1724482258918,-36.38367386,0.00013972,2]
[335766330,1724482258927,-2588.899005,0.00013972,2]
[335766332,1724482258938,-725.52,0.00013972,2]
[335766334,1724482258948,-500.0,0.00013972,2]
[335766336,1724482258958,-610.49,0.00013972,2]
[335766338,1724482258967,-500.0,0.00013972,2]
[335766340,1724482258977,-500.0,0.00013972,2]
[335766342,1724482258987,-500.0,0.00013972,2]
[335766344,1724482258997,-553.21,0.00013972,2]
[335766346,1724482259006,-162.847263,0.00013972,2]
[335766348,1724482259017,-500.0,0.00013972,2]
[335766351,1724482259029,-162.847263,0.00013972,2]
[335766353,1724482259039,-2588.899005,0.00013972,2]
[335766355,1724482259050,-162.847263,0.00013972,2]
[335766357,1724482259060,-995.17,0.00013972,2]
[335766359,1724482259070,-2588.899005,0.00013972,2]
[335766361,1724482259080,-631.11,0.00013972,2]
[335766363,1724482259089,-2588.899005,0.00013972,2]
[335766365,1724482259099,-2451.78,0.00013972,2]
[335766367,1724482259108,-962.52,0.00013972,2]
[335766369,1724482259118,-151.0,0.00013972,2]
[335766371,1724482259127,-151.0,0.00013972,2]
[335766373,1724482259136,-151.0,0.00013972,2]
[335766376,1724482259149,-792.35,0.00013972,2]
[335766378,1724482259160,-500.0,0.00013972,2]
[335766380,1724482259171,-500.0,0.00013972,2]
[335766382,1724482259180,-5334.97,0.00013972,2]
[335766384,1724482259191,-842.73,0.00013972,2]
[335766386,1724482259201,-500.0,0.00013972,2]
[335766388,1724482259211,-151.0,0.00013972,2]
[335766390,1724482259220,-151.0,0.00013972,2]
[335766392,1724482259230,-151.0,0.00013972,2]
[335766394,1724482259239,-500.0,0.00013972,2]
[335766396,1724482259249,-507.45,0.00013972,2]
[335766398,1724482259258,-1399.57,0.00013972,2]
[335766400,1724482259268,-502.7374095,0.00013972,2]
[335766402,1724482259278,-450.15808569,0.00013972,2]
[335766404,1724482259287,-660.41,0.00013972,2]
[335766406,1724482259297,-500.0,0.00013972,2]
[335766408,1724482259307,-1506.13,0.00013972,2]
[335766410,1724482259316,-500.0,0.00013972,2]
[335766413,1724482259326,-1790.67,0.00013972,2]
[335766415,1724482259336,-858.64,0.00013972,2]
[335766417,1724482259345,-661.51,0.00013972,2]
[335766419,1724482259354,-500.0,0.00013972,2]
[335766421,1724482259364,-502.76951987,0.00013972,2]
[335766423,1724482259373,-1507.86,0.00013972,2]
[335766425,1724482259382,-500.0,0.00013972,2]
[335766427,1724482259392,-511.53203485,0.00013972,2]
[335766429,1724482259403,-500.0,0.00013972,2]
[335766431,1724482259413,-500.0,0.00013972,2]
[335766433,1724482259422,-1022.42,0.00013972,2]
[335766435,1724482259431,-500.0,0.00013972,2]
[335766437,1724482259442,-12459.51,0.00013972,2]
[335766439,1724482259456,-500.0,0.00013972,2]
[335766441,1724482259466,-502.80770352,0.00013972,2]
[335766443,1724482259475,-500.0,0.00013972,2]
[335766445,1724482259484,-500.0,0.00013972,2]
[335766447,1724482259494,-2822.79,0.00013972,2]
[335766449,1724482259503,-500.0,0.00013972,2]
[335766451,1724482259512,-1926.44,0.00013972,2]
[335766453,1724482259521,-585.72,0.00013972,2]
[335766455,1724482259531,-500.0,0.00013972,2]
[335766457,1724482259540,-1234.92,0.00013972,2]
[335766459,1724482259550,-500.0,0.00013972,2]
[335766461,1724482259559,-1073.89,0.00013972,2]
[335766463,1724482259569,-572.75,0.00013972,2]
[335766465,1724482259578,-547.69074638,0.00013972,2]
[335766467,1724482259587,-2364.06,0.00013972,2]
[335766469,1724482259597,-151.0,0.00013972,2]
[335766471,1724482259608,-151.0,0.00013972,2]
[335766473,1724482259619,-3421.37,0.00013972,2]
[335766475,1724482259630,-151.0,0.00013972,2]
[335766477,1724482259640,-596.19,0.00013972,2]
[335766480,1724482259650,-500.0,0.00013972,2]
[335766482,1724482259660,-3229.67,0.00013972,2]
[335766484,1724482259670,-1520.20936848,0.00013972,2]
[335766486,1724482259683,-558.00063152,0.00013972,2]
[335766488,1724482259693,-4659.23,0.00013972,2]
[335766490,1724482259702,-1188.18996848,0.00013972,2]
[335766493,1724482259714,-173.76003152,0.00013972,2]
[335766495,1724482259724,-555.08,0.00013972,2]
[335766497,1724482259733,-961.91,0.00013972,2]
[335766499,1724482259743,-500.0,0.00013972,2]
[335766501,1724482259752,-664.56,0.00013972,2]
[335766503,1724482259762,-500.0,0.00013972,2]
[335766505,1724482259771,-645.45,0.00013972,2]
[335766507,1724482259781,-500.0,0.00013972,2]
[335766509,1724482259790,-500.0,0.00013972,2]
[335766511,1724482259800,-4421.03996848,0.00013972,2]
[335766547,1724482260628,-187.39741115,0.00013698,2]
[335766549,1724482260639,-312.60258885,0.00013698,2]
[335766551,1724482260649,-8.44741115,0.00013698,2]
[335766568,1724482266002,802.3,0.00010959,2]
[335766569,1724482276500,865.62,0.00010959,2]
[335766572,1724482419760,154.8463532,0.00010959,2]
[335766579,1724482547369,6000.0,0.00025,60]
[335766581,1724482567912,973.985,0.000166,30]
[335766583,1724482585128,-269.05533028,0.00012999,2]
[335766584,1724482585151,-230.47913314,0.00013283,2]
[335766585,1724482585173,-190.54004972,0.00013598,2]
[335766586,1724482585196,-1143.37889589,0.00013598,2]
[335766587,1724482585218,-190.54004972,0.00013667,2]
[335766588,1724482585239,-598.58292595,0.00013673,2]
[335766589,1724482585261,-1906.03026955,0.00013688,2]
[335766590,1724482585283,-2283.63676209,0.00013688,3]
[335766591,1724482585305,-521.35834296,0.00013688,2]
[335766592,1724482585328,-300.0,0.00013696,2]
[335766593,1724482585353,-300.0,0.00013696,2]
[335766594,1724482585374,-201.33744455,0.00013697,2]
[335766595,1724482585396,-301.66413705,0.00013697,2]
[335766596,1724482585418,-729.07882833,0.00013697,2]
[335766597,1724482585440,-343.20955709,0.00013697,2]
[335766598,1724482585462,-270.80779365,0.00013697,2]
[335766599,1724482585482,-234.59474518,0.00013697,2]
[335766600,1724482585503,-620.4390966,0.00013697,2]
[335766601,1724482589866,1218.2730101,0.00013598,2]
[335766602,1724482599453,779.45405942,0.00013697,2]
[335766603,1724482601623,-491.55258885,0.00013698,2]
[335766604,1724482601646,-500.0,0.00013698,2]
[335766605,1724482601668,-500.0,0.00013698,2]
[335766606,1724482601690,-500.0,0.00013698,2]
[335766607,1724482601714,-500.0,0.00013698,2]
[335766608,1724482601737,-500.0,0.00013698,2]
[335766609,1724482601763,-500.0,0.00013698,2]
[335766610,1724482601784,-500.0,0.00013698,2]
[335766611,1724482601806,-500.0,0.00013698,2]
[335766612,1724482601827,-500.0,0.00013698,2]
[335766613,1724482601849,-500.0,0.00013698,2]
[335766614,1724482601871,-443.15499385,0.00013698,2]
[335766615,1724482601894,-500.0,0.00013698,2]
[335766616,1724482601916,-500.0,0.00013698,2]
[335766617,1724482601939,-500.0,0.00013698,2]
[335766618,1724482601961,-500.0,0.00013698,2]
[335766619,1724482601986,-500.0,0.00013698,2]
[335766620,1724482602007,-500.0,0.00013698,2]
[335766621,1724482602029,-500.0,0.00013698,2]
[335766622,1724482602051,-200.32198603,0.00013698,2]
[335766623,1724482624694,10000.0,0.0001211,2]
[335766643,1724483225119,-300.0,0.0001246,2]
[335766644,1724483225140,-300.0,0.0001246,2]
[335766645,1724483225162,-9144.52136008,0.00012461,2]
[335766646,1724483254160,-2141.36250762,0.00012461,2]
[335766647,1724483254181,-969.37215561,0.00012989,2]
[335766648,1724483254203,-374.404804,0.00013,2]
[335766649,1724483254224,-849.6873478,0.00013051,3]
[335766696,1724483432427,-802.29409509,0.00012898,2]
[335766756,1724483438553,-274.14,0.00012898,2]
[335766770,1724483438667,-13967.77490299,0.00012898,2]
[335766772,1724483438676,-300.0,0.00012988,2]
[335766774,1724483438686,-153.0,0.000135,2]
[335766776,1724483438695,-153.0,0.00013552,2]
[335766778,1724483438705,-154.72922386,0.00013596,2]
[335766780,1724483438714,-301.66413705,0.00013596,2]
[335766782,1724483438723,-468.8167749,0.00013597,2]
[335766784,1724483438733,-342.36840751,0.00013597,2]
[335766786,1724483438743,-730.05549444,0.00013598,2]
[335766788,1724483438752,-571.62014916,0.00013598,2]
[335766790,1724483438761,-2314.47096633,0.00013598,2]
[335766792,1724483438771,-154.72922386,0.00013599,2]
[335766794,1724483438780,-150.112233,0.000136,2]
[335766796,1724483438790,-150.112233,0.000136,2]
[335766798,1724483438800,-153.0,0.000136,2]
[335766800,1724483438809,-153.0,0.000136,2]
[335766802,1724483438819,-153.0557673,0.000136,2]
[335766804,1724483438829,-500.0,0.00013673,2]
[335766806,1724483438840,-500.0,0.00013673,2]
[335766808,1724483438850,-500.0,0.00013673,2]
[335766810,1724483438860,-170.27890073,0.00013673,2]
[335766812,1724483438870,-500.0,0.00013673,2]
[335766814,1724483438879,-820.97875113,0.00013697,2]
[335766816,1724483438890,-298.66156942,0.00013698,2]
[335766818,1724483438899,-528.75928627,0.00013698,2]
[335766820,1724483438909,-255.01063183,0.00013698,2]
[335766822,1724483438919,-500.0,0.00013698,2]
[335766824,1724483438929,-500.0,0.00013698,2]
[335766826,1724483438938,-500.0,0.00013698,2]
[335766828,1724483438948,-287.52726916,0.00013698,2]
[335766830,1724483438957,-500.0,0.00013698,2]
[335766832,1724483438966,-500.0,0.00013698,2]
[335766834,1724483438976,-500.0,0.00013698,2]
[335766836,1724483438986,-500.0,0.00013698,2]
[335766838,1724483438997,-500.0,0.00013698,2]
[335766840,1724483439007,-500.0,0.00013698,2]
[335766842,1724483439015,-316.91493203,0.00013698,2]
[335766844,1724483439025,-500.0,0.00013698,2]
[335766846,1724483439034,-500.0,0.00013698,2]
[335766848,1724483439044,-500.0,0.00013698,2]
[335766850,1724483439053,-500.0,0.00013698,2]
[335766852,1724483439062,-500.0,0.00013698,2]
[335766854,1724483439071,-500.0,0.00013698,2]
[335766856,1724483439080,-500.0,0.00013698,2]
[335766858,1724483439090,-500.0,0.00013698,2]
[335766860,1724483439099,-500.0,0.00013698,2]
[335766862,1724483439108,-500.0,0.00013698,2]
[335766864,1724483439118,-500.0,0.00013698,2]
[335766867,1724483439129,-1074.41,0.00013698,2]
[335766869,1724483439138,-500.0,0.00013698,2]
[335766871,1724483439148,-541.83565797,0.00013698,2]
[335766873,1724483439158,-541.83565797,0.00013698,2]
[335766875,1724483439167,-541.83565797,0.00013698,2]
[335766877,1724483439177,-541.83565797,0.00013698,2]
[335766879,1724483439186,-541.83565797,0.00013698,2]
[335766881,1724483439196,-541.83565797,0.00013698,2]
[335766883,1724483439205,-541.83565797,0.00013698,2]
[335766885,1724483439215,-541.83565797,0.00013698,2]
[335766887,1724483439224,-541.83565797,0.00013698,2]
[335766889,1724483439233,-541.83565797,0.00013698,2]
[335766891,1724483439243,-541.83565797,0.00013698,2]
[335766892,1724483439252,-541.83565797,0.00013698,2]
[335766894,1724483439261,-500.0,0.00013698,2]
[335766896,1724483439271,-500.0,0.00013698,2]
[335766898,1724483439280,-500.0,0.00013698,2]
[335766900,1724483439289,-678.32,0.00013698,2]
[335766902,1724483439299,-637.8683193,0.00013698,2]
[335766904,1724483439309,-637.8683193,0.00013698,2]
[335766906,1724483439318,-500.0,0.00013698,2]
[335766908,1724483439327,-637.8683193,0.00013698,2]
[335766910,1724483439337,-695.83,0.00013698,2]
[335766912,1724483439346,-181.06987993,0.00013698,2]
[335766914,1724483439357,-500.0,0.00013698,2]
[335766916,1724483439366,-1134.43,0.00013698,2]
[335766918,1724483439376,-501.98071286,0.00013698,2]
[335766921,1724483439386,-500.0,0.00013698,2]
[335766923,1724483439395,-500.0,0.00013698,2]
[335766925,1724483439404,-502.86105163,0.00013698,2]
[335766944,1724483439414,-527.63769833,0.00013698,2]
[335766947,1724483439610,-500.0,0.00013698,2]
[335766949,1724483439619,-500.0,0.00013698,2]
[335766951,1724483439628,-808.88,0.00013698,2]
[335766953,1724483439638,-575.98,0.00013698,2]
[335766955,1724483439647,-771.07,0.00013698,2]
[335766957,1724483439657,-789.14,0.00013698,2]
[335766959,1724483439667,-511.99630393,0.00013698,2]
[335766961,1724483439677,-500.0,0.00013698,2]
[335766963,1724483439686,-830.35,0.00013698,2]
[335766965,1724483439695,-500.0,0.00013698,2]
[335766966,1724483439704,-500.0,0.00013698,2]
[335766968,1724483439713,-580.25,0.00013698,2]
[335766970,1724483439723,-500.0,0.00013698,2]
[335766972,1724483439733,-543.81,0.00013698,2]
[335766975,1724483439743,-500.0,0.00013698,2]
[335766976,1724483439753,-500.0,0.00013698,2]
[335766978,1724483439762,-500.18172759,0.00013698,2]
[335766980,1724483439772,-500.0,0.00013698,2]
[335766982,1724483439781,-500.0,0.00013698,2]
[335766984,1724483439790,-500.0,0.00013698,2]
[335766987,1724483439799,-500.0,0.00013698,2]
[335766989,1724483439808,-500.0,0.00013698,2]
[335766991,1724483439818,-500.0,0.00013698,2]
[335766993,1724483439828,-500.0,0.00013698,2]
[335766995,1724483439840,-500.0,0.00013698,2]
[335766997,1724483439849,-500.0,0.00013698,2]
[335766998,1724483439859,-500.0,0.00013698,2]
[335767000,1724483439868,-500.0,0.00013698,2]
[335767002,1724483439879,-563.37,0.00013698,2]
[335767005,1724483439888,-500.0,0.00013698,2]
[335767006,1724483439897,-638.51,0.00013698,2]
[335767009,1724483439907,-617.09,0.00013698,2]
[335767011,1724483439917,-503.69866884,0.00013698,2]
[335767012,1724483439926,-503.11997067,0.00013698,2]
[335767014,1724483439936,-844.96,0.00013698,2]
[335767016,1724483439945,-500.0,0.00013698,2]
[335767020,1724483439954,-500.0,0.00013698,2]
[335767024,1724483439964,-500.0,0.00013698,2]
[335767027,1724483439973,-500.0,0.00013698,2]
[335767029,1724483439982,-500.71268256,0.00013698,2]
[335767031,1724483439991,-500.0,0.00013698,2]
[335767033,1724483440001,-500.0,0.00013698,2]
[335767035,1724483440010,-518.14,0.00013698,2]
[335767037,1724483440019,-607.28,0.00013698,2]
[335767039,1724483440031,-500.0,0.00013698,2]
[335767041,1724483440040,-500.0,0.00013698,2]
[335767043,1724483440050,-500.0,0.00013698,2]
[335767045,1724483440061,-500.0,0.00013698,2]
[335767047,1724483440071,-500.0,0.00013698,2]
[335767049,1724483440081,-500.0,0.00013698,2]
[335767051,1724483440091,-500.0,0.00013698,2]
[335767053,1724483440100,-2446.63,0.00013698,2]
[335767056,1724483440110,-519.21642088,0.00013698,2]
[335767059,1724483440120,-500.0,0.00013698,2]
[335767062,1724483440130,-500.0,0.00013698,2]
[335767065,1724483440140,-669.47,0.00013698,2]
[335767067,1724483440150,-500.0,0.00013698,2]
[335767069,1724483440159,-764.18,0.00013698,2]
[335767071,1724483440167,-500.0,0.00013698,2]
[335767073,1724483440176,-500.0,0.00013698,2]
[335767075,1724483440186,-500.0,0.00013698,2]
[335767077,1724483440195,-500.0,0.00013698,2]
[335767080,1724483440205,-500.0,0.00013698,2]
[335767083,1724483440214,-500.0,0.00013698,2]
[335767086,1724483440223,-500.0,0.00013698,2]
[335767089,1724483440233,-500.0,0.00013698,2]
[335767092,1724483440248,-500.0,0.00013698,2]
[335767095,1724483440257,-500.0,0.00013698,2]
[335767098,1724483440266,-500.0,0.00013698,2]
[335767101,1724483440275,-501.67479403,0.00013698,2]
[335767104,1724483440285,-500.0,0.00013698,2]
[335767108,1724483440295,-756.43,0.00013698,2]
[335767111,1724483440304,-416.90936469,0.00013698,2]
[335767114,1724483440313,-500.0,0.00013698,2]
[335767117,1724483440323,-500.0,0.00013698,2]
[335767119,1724483440334,-534.63057297,0.00013698,2]
[335767122,1724483440344,-500.0,0.00013698,2]